[Event "Titled Tuesday Blitz April 11 Early 2023"]
[White "Principe, Gerson"]
[Black "Vetoshko, Volodymyr"]
[WhiteFideId "3804550"]
[BlackFideId "14122480"]
[WhiteElo "2229"]
[BlackElo "2422"]
[Result "1-0"]
[Round "03"]
[TimeControl "180+2"]
[Date "2023.04.11"]
[WhiteClock "0:00:16"]
[BlackClock "0:00:03"]

1. d4 {[%clk 0:02:59]}  e6 {[%clk 0:02:45]} 2. Nf3 {[%clk 0:02:58]}  f5 {[%clk 0:02:41]} 3. g3 {[%clk 0:02:58]}  Nf6 {[%clk 0:02:41]} 4. Bg2 {[%clk 0:02:59]}  d5 {[%clk 0:02:41]} 5. O-O {[%clk 0:02:59]}  Bd6 {[%clk 0:02:38]} 6. c4 {[%clk 0:02:58]}  c6 {[%clk 0:02:38]} 7. b3 {[%clk 0:02:58]}  O-O {[%clk 0:02:38]} 8. Ba3 {[%clk 0:02:58]}  Bxa3 {[%clk 0:02:28]} 9. Nxa3 {[%clk 0:02:59]}  Nbd7 {[%clk 0:02:22]} 10. Nc2 {[%clk 0:02:50]}  b6 {[%clk 0:02:14]} 11. Nce1 {[%clk 0:02:45]}  a5 {[%clk 0:02:03]} 12. Nd3 {[%clk 0:02:42]}  Ba6 {[%clk 0:02:03]} 13. Rc1 {[%clk 0:02:40]}  Rc8 {[%clk 0:01:50]} 14. Nde5 {[%clk 0:02:34]}  Nxe5 {[%clk 0:01:50]} 15. Nxe5 {[%clk 0:02:32]}  Nd7 {[%clk 0:01:48]} 16. Nd3 {[%clk 0:02:23]}  Qe7 {[%clk 0:01:37]} 17. Qd2 {[%clk 0:02:17]}  dxc4 {[%clk 0:01:20]} 18. bxc4 {[%clk 0:02:14]}  c5 {[%clk 0:01:09]} 19. d5 {[%clk 0:02:04]}  e5 {[%clk 0:01:08]} 20. e4 {[%clk 0:01:55]}  f4 {[%clk 0:00:48]} 21. f3 {[%clk 0:01:07]}  Qd6 {[%clk 0:00:14]} 22. Bh3 {[%clk 0:01:05]}  fxg3 {[%clk 0:00:12]} 23. hxg3 {[%clk 0:01:03]}  Rce8 {[%clk 0:00:11]} 24. Bxd7 {[%clk 0:01:01]}  Qxd7 {[%clk 0:00:12]} 25. Kg2 {[%clk 0:01:00]}  h6 {[%clk 0:00:12]} 26. Qb2 {[%clk 0:00:58]}  Qd6 {[%clk 0:00:11]} 27. a4 {[%clk 0:00:54]}  Rf6 {[%clk 0:00:09]} 28. f4 {[%clk 0:00:50]}  Qe7 {[%clk 0:00:01]} 29. fxe5 {[%clk 0:00:47]}  Rxf1 {[%clk 0:00:02]} 30. Rxf1 {[%clk 0:00:47]}  Qg5 {[%clk 0:00:02]} 31. e6 {[%clk 0:00:35]}  Bxc4 {[%clk 0:00:01]} 32. Rf3 {[%clk 0:00:33]}  Bxd3 {[%clk 0:00:01]} 33. Rxd3 {[%clk 0:00:32]}  c4 {[%clk 0:00:02]} 34. Rf3 {[%clk 0:00:31]}  h5 {[%clk 0:00:02]} 35. Qxb6 {[%clk 0:00:28]}  c3 {[%clk 0:00:01]} 36. Qf2 {[%clk 0:00:25]}  Rc8 {[%clk 0:00:01]} 37. Qc2 {[%clk 0:00:23]}  Qd2+ {[%clk 0:00:01]} 38. Qxd2 {[%clk 0:00:21]}  cxd2 {[%clk 0:00:01]} 39. Rd3 {[%clk 0:00:21]}  Rc2 {[%clk 0:00:02]} 40. Kh3 {[%clk 0:00:19]}  h4 {[%clk 0:00:02]} 41. Kxh4 {[%clk 0:00:17]}  Kf8 {[%clk 0:00:02]} 42. d6 {[%clk 0:00:18]}  Ke8 {[%clk 0:00:02]} 43. Kg5 {[%clk 0:00:17]}  Rc5+ {[%clk 0:00:02]} 44. Kg6 {[%clk 0:00:16]}  Rc3 {[%clk 0:00:01]} 45. Rxd2 {[%clk 0:00:16]}  Rxg3+ {[%clk 0:00:02]} 46. Kf5 {[%clk 0:00:16]}  Rf3+ {[%clk 0:00:03]} 47. Ke5 {[%clk 0:00:16]} 1-0


[Site "https://www.chess.com"]

[Event "Titled Tuesday Blitz April 11 Early 2023"]
[White "Krysa, Leandro"]
[Black "Cervantes Landeiro, Thalia"]
[WhiteFideId "116807"]
[BlackFideId "3520498"]
[WhiteElo "2489"]
[BlackElo "2172"]
[Result "1/2-1/2"]
[Round "03"]
[TimeControl "180+2"]
[Date "2023.04.11"]
[WhiteClock "0:00:05"]
[BlackClock "0:00:06"]

1. e4 {[%clk 0:03:00]}  c5 {[%clk 0:02:59]} 2. Nf3 {[%clk 0:03:00]}  d6 {[%clk 0:03:00]} 3. d4 {[%clk 0:03:00]}  cxd4 {[%clk 0:03:01]} 4. Nxd4 {[%clk 0:03:01]}  Nf6 {[%clk 0:03:01]} 5. Nc3 {[%clk 0:03:02]}  a6 {[%clk 0:03:02]} 6. Rg1 {[%clk 0:03:01]}  e5 {[%clk 0:03:00]} 7. Nb3 {[%clk 0:03:00]}  Be6 {[%clk 0:02:45]} 8. g4 {[%clk 0:02:56]}  d5 {[%clk 0:02:45]} 9. exd5 {[%clk 0:02:49]}  Nxd5 {[%clk 0:02:45]} 10. Nxd5 {[%clk 0:02:49]}  Qxd5 {[%clk 0:02:38]} 11. Qxd5 {[%clk 0:02:47]}  Bxd5 {[%clk 0:02:39]} 12. Be3 {[%clk 0:02:47]}  Nd7 {[%clk 0:02:32]} 13. O-O-O {[%clk 0:02:43]}  Bxb3 {[%clk 0:02:18]} 14. axb3 {[%clk 0:02:41]}  Bc5 {[%clk 0:02:15]} 15. Bxc5 {[%clk 0:02:21]}  Nxc5 {[%clk 0:02:14]} 16. Bg2 {[%clk 0:02:11]}  Ke7 {[%clk 0:01:27]} 17. b4 {[%clk 0:01:53]}  Ne6 {[%clk 0:01:26]} 18. Bxb7 {[%clk 0:01:52]}  Rab8 {[%clk 0:01:25]} 19. Bxa6 {[%clk 0:01:45]}  Rxb4 {[%clk 0:01:24]} 20. b3 {[%clk 0:01:32]}  Nf4 {[%clk 0:00:56]} 21. Rd2 {[%clk 0:01:13]}  Ra8 {[%clk 0:00:53]} 22. Bf1 {[%clk 0:01:05]}  Ra1+ {[%clk 0:00:38]} 23. Kb2 {[%clk 0:01:05]}  Re1 {[%clk 0:00:38]} 24. Rh1 {[%clk 0:00:51]}  e4 {[%clk 0:00:28]} 25. h4 {[%clk 0:00:36]}  Rb8 {[%clk 0:00:23]} 26. Rd4 {[%clk 0:00:26]}  Kf6 {[%clk 0:00:20]} 27. g5+ {[%clk 0:00:25]}  Ke5 {[%clk 0:00:20]} 28. Rd7 {[%clk 0:00:23]}  Rf8 {[%clk 0:00:11]} 29. b4 {[%clk 0:00:20]}  g6 {[%clk 0:00:06]} 30. b5 {[%clk 0:00:18]}  Rb8 {[%clk 0:00:05]} 31. Rxf7 {[%clk 0:00:17]}  Rxb5+ {[%clk 0:00:04]} 32. Bxb5 {[%clk 0:00:17]}  Rxh1 {[%clk 0:00:05]} 33. Rxh7 {[%clk 0:00:17]}  Rh2 {[%clk 0:00:06]} 34. h5 {[%clk 0:00:13]}  Rxf2 {[%clk 0:00:03]} 35. h6 {[%clk 0:00:10]}  Rh2 {[%clk 0:00:03]} 36. Rh8 {[%clk 0:00:10]}  Ne6 {[%clk 0:00:03]} 37. Re8 {[%clk 0:00:09]}  Kd6 {[%clk 0:00:03]} 38. Bc4 {[%clk 0:00:08]}  Nxg5 {[%clk 0:00:03]} 39. Rg8 {[%clk 0:00:07]}  Rxh6 {[%clk 0:00:03]} 40. Rd8+ {[%clk 0:00:07]}  Ke5 {[%clk 0:00:04]} 41. Ra8 {[%clk 0:00:07]}  Kf4 {[%clk 0:00:04]} 42. Re8 {[%clk 0:00:08]}  Rh2 {[%clk 0:00:04]} 43. Kc3 {[%clk 0:00:08]}  Nf3 {[%clk 0:00:05]} 44. Rf8+ {[%clk 0:00:08]}  Ke3 {[%clk 0:00:04]} 45. Bd5 {[%clk 0:00:08]}  Ne5 {[%clk 0:00:04]} 46. Re8 {[%clk 0:00:08]}  Kf4 {[%clk 0:00:04]} 47. Kd4 {[%clk 0:00:07]}  Rd2+ {[%clk 0:00:04]} 48. Kc5 {[%clk 0:00:07]}  Rxc2+ {[%clk 0:00:04]} 49. Kd6 {[%clk 0:00:08]}  e3 {[%clk 0:00:04]} 50. Rxe5 {[%clk 0:00:07]}  e2 {[%clk 0:00:05]} 51. Re4+ {[%clk 0:00:06]}  Kg3 {[%clk 0:00:04]} 52. Bc4 {[%clk 0:00:05]}  Kf2 {[%clk 0:00:04]} 53. Bxe2 {[%clk 0:00:04]}  Rxe2 {[%clk 0:00:04]} 54. Rg4 {[%clk 0:00:05]}  Rd2+ {[%clk 0:00:03]} 55. Ke6 {[%clk 0:00:05]}  Ke3 {[%clk 0:00:04]} 56. Rxg6 {[%clk 0:00:04]}  Re2 {[%clk 0:00:05]} 57. Rf6 {[%clk 0:00:04]}  Kd3+ {[%clk 0:00:05]} 58. Kf7 {[%clk 0:00:04]}  Ke3 {[%clk 0:00:05]} 59. Re6+ {[%clk 0:00:05]}  Kf2 {[%clk 0:00:05]} 60. Rxe2+ {[%clk 0:00:05]}  Kxe2 {[%clk 0:00:06]} 1/2-1/2


[Site "https://www.chess.com"]

[Event "Titled Tuesday Blitz April 11 Early 2023"]
[White "Reprintsev, Alexander"]
[Black "Souleidis, Georgios"]
[WhiteFideId "14100541"]
[BlackFideId "4206827"]
[WhiteElo "2211"]
[BlackElo "2401"]
[Result "0-1"]
[Round "03"]
[TimeControl "180+2"]
[Date "2023.04.11"]
[WhiteClock "0:00:33"]
[BlackClock "0:00:12"]

1. e4 {[%clk 0:03:00]}  c5 {[%clk 0:02:57]} 2. b3 {[%clk 0:03:00]}  e6 {[%clk 0:02:57]} 3. Qe2 {[%clk 0:02:58]}  a6 {[%clk 0:02:57]} 4. Bb2 {[%clk 0:02:58]}  Nc6 {[%clk 0:02:55]} 5. g3 {[%clk 0:02:55]}  d5 {[%clk 0:02:50]} 6. exd5 {[%clk 0:02:50]}  Qxd5 {[%clk 0:02:51]} 7. Nf3 {[%clk 0:02:50]}  Nf6 {[%clk 0:02:39]} 8. Bg2 {[%clk 0:02:50]}  Be7 {[%clk 0:02:28]} 9. O-O {[%clk 0:02:49]}  Qd8 {[%clk 0:02:26]} 10. Na3 {[%clk 0:02:46]}  Qc7 {[%clk 0:02:15]} 11. Nc4 {[%clk 0:02:45]}  b5 {[%clk 0:02:12]} 12. Nce5 {[%clk 0:02:45]}  Bb7 {[%clk 0:02:13]} 13. Nxc6 {[%clk 0:02:42]}  Bxc6 {[%clk 0:02:13]} 14. c4 {[%clk 0:02:20]}  O-O {[%clk 0:02:09]} 15. Ne5 {[%clk 0:02:10]}  Bxg2 {[%clk 0:02:09]} 16. Kxg2 {[%clk 0:02:11]}  Rfd8 {[%clk 0:02:03]} 17. d3 {[%clk 0:02:07]}  Nd7 {[%clk 0:01:45]} 18. Ng4 {[%clk 0:01:56]}  Qc6+ {[%clk 0:01:14]} 19. Qf3 {[%clk 0:01:54]}  Qxf3+ {[%clk 0:01:10]} 20. Kxf3 {[%clk 0:01:54]}  h5 {[%clk 0:01:10]} 21. Ne3 {[%clk 0:01:51]}  Bf6 {[%clk 0:01:05]} 22. Rab1 {[%clk 0:01:43]}  Bxb2 {[%clk 0:01:02]} 23. Rxb2 {[%clk 0:01:43]}  Ne5+ {[%clk 0:01:02]} 24. Ke2 {[%clk 0:01:41]}  Nxd3 {[%clk 0:01:00]} 25. Rd2 {[%clk 0:01:41]}  Ne5 {[%clk 0:00:59]} 26. f4 {[%clk 0:01:39]}  Nc6 {[%clk 0:00:58]} 27. Rfd1 {[%clk 0:01:37]}  Rxd2+ {[%clk 0:00:55]} 28. Rxd2 {[%clk 0:01:37]}  Nd4+ {[%clk 0:00:54]} 29. Kf2 {[%clk 0:01:37]}  b4 {[%clk 0:00:54]} 30. h3 {[%clk 0:01:26]}  a5 {[%clk 0:00:54]} 31. g4 {[%clk 0:01:25]}  hxg4 {[%clk 0:00:55]} 32. hxg4 {[%clk 0:01:25]}  g6 {[%clk 0:00:55]} 33. f5 {[%clk 0:01:23]}  gxf5 {[%clk 0:00:55]} 34. gxf5 {[%clk 0:01:23]}  a4 {[%clk 0:00:51]} 35. fxe6 {[%clk 0:01:22]}  fxe6 {[%clk 0:00:52]} 36. Nc2 {[%clk 0:01:10]}  axb3 {[%clk 0:00:49]} 37. Nxd4 {[%clk 0:01:09]}  bxa2 {[%clk 0:00:40]} 38. Nc2 {[%clk 0:01:09]}  a1=Q {[%clk 0:00:36]} 39. Nxa1 {[%clk 0:01:09]}  Rxa1 {[%clk 0:00:37]} 40. Rd8+ {[%clk 0:01:09]}  Kf7 {[%clk 0:00:37]} 41. Rc8 {[%clk 0:01:10]}  b3 {[%clk 0:00:35]} 42. Rb8 {[%clk 0:01:09]}  Rc1 {[%clk 0:00:27]} 43. Rxb3 {[%clk 0:01:07]}  Rxc4 {[%clk 0:00:27]} 44. Ke3 {[%clk 0:01:07]}  e5 {[%clk 0:00:26]} 45. Rb6 {[%clk 0:01:07]}  Rd4 {[%clk 0:00:23]} 46. Rc6 {[%clk 0:01:07]}  c4 {[%clk 0:00:23]} 47. Kf3 {[%clk 0:01:07]}  Ke7 {[%clk 0:00:24]} 48. Ke3 {[%clk 0:01:06]}  Kd7 {[%clk 0:00:24]} 49. Rh6 {[%clk 0:01:04]}  c3 {[%clk 0:00:22]} 50. Rh7+ {[%clk 0:00:50]}  Kd6 {[%clk 0:00:22]} 51. Rh8 {[%clk 0:00:51]}  Kc5 {[%clk 0:00:18]} 52. Re8 {[%clk 0:00:49]}  Kb4 {[%clk 0:00:15]} 53. Rxe5 {[%clk 0:00:48]}  Rd8 {[%clk 0:00:15]} 54. Re7 {[%clk 0:00:46]}  Kb3 {[%clk 0:00:14]} 55. Rb7+ {[%clk 0:00:46]}  Kc2 {[%clk 0:00:14]} 56. Ke2 {[%clk 0:00:47]}  Re8+ {[%clk 0:00:14]} 57. Kf2 {[%clk 0:00:47]}  Kd2 {[%clk 0:00:14]} 58. Rd7+ {[%clk 0:00:47]}  Kc1 {[%clk 0:00:14]} 59. Rc7 {[%clk 0:00:47]}  c2 {[%clk 0:00:14]} 60. Rb7 {[%clk 0:00:46]}  Re4 {[%clk 0:00:13]} 61. Kf3 {[%clk 0:00:45]}  Re5 {[%clk 0:00:13]} 62. Kf2 {[%clk 0:00:43]}  Kd2 {[%clk 0:00:12]} 63. Rd7+ {[%clk 0:00:43]}  Kc3 {[%clk 0:00:12]} 64. Rc7+ {[%clk 0:00:43]}  Kd3 {[%clk 0:00:13]} 65. Rc8 {[%clk 0:00:40]}  Re4 {[%clk 0:00:13]} 66. Kf3 {[%clk 0:00:33]}  Rc4 {[%clk 0:00:12]} 0-1


[Site "https://www.chess.com"]

[Event "Titled Tuesday Blitz April 11 Early 2023"]
[White "Belozerov, Andrei"]
[Black "Chernomordik, Pavel"]
[WhiteFideId "4120213"]
[BlackFideId "2804530"]
[WhiteElo "2373"]
[BlackElo "2193"]
[Result "1-0"]
[Round "03"]
[TimeControl "180+2"]
[Date "2023.04.11"]
[WhiteClock "0:00:34"]
[BlackClock "0:00:56"]

1. e4 {[%clk 0:03:00]}  g6 {[%clk 0:02:59]} 2. d4 {[%clk 0:03:00]}  Bg7 {[%clk 0:02:59]} 3. Nf3 {[%clk 0:03:00]}  d6 {[%clk 0:02:59]} 4. Bc4 {[%clk 0:02:59]}  e6 {[%clk 0:02:56]} 5. O-O {[%clk 0:02:57]}  b6 {[%clk 0:02:56]} 6. Re1 {[%clk 0:02:54]}  Bb7 {[%clk 0:02:55]} 7. Nbd2 {[%clk 0:02:47]}  Nd7 {[%clk 0:02:55]} 8. Nf1 {[%clk 0:02:38]}  Ne7 {[%clk 0:02:45]} 9. Ng3 {[%clk 0:02:37]}  c5 {[%clk 0:02:41]} 10. c3 {[%clk 0:02:32]}  Qc7 {[%clk 0:02:40]} 11. Bb3 {[%clk 0:02:29]}  O-O-O {[%clk 0:02:31]} 12. a4 {[%clk 0:02:24]}  a6 {[%clk 0:02:29]} 13. Bg5 {[%clk 0:02:21]}  Rde8 {[%clk 0:02:27]} 14. Qd2 {[%clk 0:02:12]}  h6 {[%clk 0:02:25]} 15. Be3 {[%clk 0:02:10]}  c4 {[%clk 0:02:14]} 16. Bc2 {[%clk 0:02:08]}  f5 {[%clk 0:02:13]} 17. a5 {[%clk 0:01:43]}  b5 {[%clk 0:02:12]} 18. d5 {[%clk 0:01:40]}  fxe4 {[%clk 0:01:52]} 19. dxe6 {[%clk 0:01:39]}  exf3 {[%clk 0:01:51]} 20. exd7+ {[%clk 0:01:38]}  Qxd7 {[%clk 0:01:50]} 21. gxf3 {[%clk 0:01:10]}  Bxf3 {[%clk 0:01:41]} 22. Ne4 {[%clk 0:00:49]}  Qh3 {[%clk 0:01:26]} 23. Nxd6+ {[%clk 0:00:42]}  Kc7 {[%clk 0:01:03]} 24. Bb6+ {[%clk 0:00:38]}  Kb8 {[%clk 0:01:02]} 25. Ba7+ {[%clk 0:00:34]}  Kxa7 {[%clk 0:00:57]} 26. Qe3+ {[%clk 0:00:35]}  Ka8 {[%clk 0:00:56]} 27. Be4+ {[%clk 0:00:34]} 1-0


[Site "https://www.chess.com"]

[Event "Titled Tuesday Blitz April 11 Early 2023"]
[White "Petukhov, Dmitry"]
[Black "Munkhgal, Gombosuren"]
[WhiteFideId "4142748"]
[BlackFideId "4901266"]
[WhiteElo "2311"]
[BlackElo "2528"]
[Result "1-0"]
[Round "03"]
[TimeControl "180+2"]
[Date "2023.04.11"]
[WhiteClock "0:00:21"]
[BlackClock "0:01:15"]

1. e4 {[%clk 0:02:59]}  e6 {[%clk 0:03:00]} 2. d4 {[%clk 0:02:59]}  d5 {[%clk 0:03:01]} 3. e5 {[%clk 0:03:00]}  c5 {[%clk 0:03:01]} 4. c3 {[%clk 0:02:57]}  Nc6 {[%clk 0:03:01]} 5. Nf3 {[%clk 0:02:57]}  Qb6 {[%clk 0:03:00]} 6. a3 {[%clk 0:02:57]}  Nh6 {[%clk 0:03:00]} 7. b4 {[%clk 0:02:57]}  cxd4 {[%clk 0:03:00]} 8. cxd4 {[%clk 0:02:58]}  Nf5 {[%clk 0:03:01]} 9. Be3 {[%clk 0:02:55]}  Nxe3 {[%clk 0:03:00]} 10. fxe3 {[%clk 0:02:54]}  f6 {[%clk 0:03:00]} 11. exf6 {[%clk 0:02:54]}  gxf6 {[%clk 0:03:01]} 12. Bd3 {[%clk 0:02:47]}  Bh6 {[%clk 0:03:01]} 13. Qe2 {[%clk 0:02:45]}  O-O {[%clk 0:02:57]} 14. O-O {[%clk 0:02:30]}  e5 {[%clk 0:02:57]} 15. Nc3 {[%clk 0:02:24]}  Be6 {[%clk 0:02:51]} 16. Na4 {[%clk 0:02:19]}  Qd8 {[%clk 0:02:47]} 17. Nc5 {[%clk 0:02:20]}  Bc8 {[%clk 0:02:48]} 18. dxe5 {[%clk 0:02:10]}  fxe5 {[%clk 0:02:47]} 19. e4 {[%clk 0:02:02]}  d4 {[%clk 0:02:39]} 20. b5 {[%clk 0:02:02]}  Be3+ {[%clk 0:02:32]} 21. Kh1 {[%clk 0:02:00]}  Qd6 {[%clk 0:02:27]} 22. Qa2+ {[%clk 0:01:35]}  Kh8 {[%clk 0:02:23]} 23. Qd5 {[%clk 0:01:30]}  Qxd5 {[%clk 0:02:10]} 24. exd5 {[%clk 0:01:31]}  Na5 {[%clk 0:01:49]} 25. Nxe5 {[%clk 0:01:31]}  Rxf1+ {[%clk 0:01:39]} 26. Rxf1 {[%clk 0:01:32]}  b6 {[%clk 0:01:35]} 27. Rf8+ {[%clk 0:01:27]}  Kg7 {[%clk 0:01:35]} 28. Rf7+ {[%clk 0:01:14]}  Kh6 {[%clk 0:01:28]} 29. Rxh7+ {[%clk 0:01:09]}  Kg5 {[%clk 0:01:28]} 30. Ne4+ {[%clk 0:01:01]}  Kf5 {[%clk 0:01:23]} 31. Rh5+ {[%clk 0:00:49]}  Kf4 {[%clk 0:01:16]} 32. Ng6+ {[%clk 0:00:20]}  Kg4 {[%clk 0:01:15]} 33. Be2# {[%clk 0:00:21]} 1-0


[Site "https://www.chess.com"]

[Event "Titled Tuesday Blitz April 11 Early 2023"]
[White "Papp, Levente"]
[Black "Chandreyee, Hajra"]
[WhiteFideId "751243"]
[BlackFideId "5056535"]
[WhiteElo "2380"]
[BlackElo "1725"]
[Result "1-0"]
[Round "03"]
[TimeControl "180+2"]
[Date "2023.04.11"]
[WhiteClock "0:00:16"]
[BlackClock "0:00:18"]

1. b3 {[%clk 0:03:00]}  e6 {[%clk 0:02:58]} 2. Bb2 {[%clk 0:03:00]}  f5 {[%clk 0:02:58]} 3. d3 {[%clk 0:02:47]}  Nf6 {[%clk 0:02:58]} 4. Nd2 {[%clk 0:02:46]}  d5 {[%clk 0:02:53]} 5. e4 {[%clk 0:02:43]}  dxe4 {[%clk 0:02:51]} 6. dxe4 {[%clk 0:02:43]}  Bb4 {[%clk 0:02:49]} 7. c3 {[%clk 0:02:31]}  Be7 {[%clk 0:02:38]} 8. exf5 {[%clk 0:02:30]}  exf5 {[%clk 0:02:38]} 9. Bc4 {[%clk 0:02:27]}  Nbd7 {[%clk 0:02:32]} 10. Ngf3 {[%clk 0:02:07]}  Nb6 {[%clk 0:02:31]} 11. Qe2 {[%clk 0:02:07]}  Nxc4 {[%clk 0:02:29]} 12. Qxc4 {[%clk 0:02:08]}  Qd5 {[%clk 0:02:11]} 13. Qxd5 {[%clk 0:01:51]}  Nxd5 {[%clk 0:02:11]} 14. c4 {[%clk 0:01:52]}  Nf4 {[%clk 0:02:01]} 15. O-O {[%clk 0:01:50]}  O-O {[%clk 0:01:59]} 16. Be5 {[%clk 0:01:36]}  Ne6 {[%clk 0:01:44]} 17. Rfe1 {[%clk 0:01:28]}  Bd7 {[%clk 0:01:23]} 18. Bxc7 {[%clk 0:01:25]}  Bc5 {[%clk 0:01:17]} 19. Be5 {[%clk 0:01:17]}  Rae8 {[%clk 0:01:13]} 20. a3 {[%clk 0:01:06]}  a5 {[%clk 0:01:12]} 21. Bc3 {[%clk 0:01:03]}  Nf4 {[%clk 0:01:08]} 22. Ne5 {[%clk 0:00:59]}  Bc6 {[%clk 0:01:05]} 23. b4 {[%clk 0:00:50]}  Ba7 {[%clk 0:00:40]} 24. Nxc6 {[%clk 0:00:32]}  bxc6 {[%clk 0:00:40]} 25. Kf1 {[%clk 0:00:29]}  Nd3 {[%clk 0:00:33]} 26. Rxe8 {[%clk 0:00:29]}  Rxe8 {[%clk 0:00:33]} 27. c5 {[%clk 0:00:29]}  Bb8 {[%clk 0:00:29]} 28. Nf3 {[%clk 0:00:22]}  Nf4 {[%clk 0:00:24]} 29. bxa5 {[%clk 0:00:19]}  Nd5 {[%clk 0:00:24]} 30. Bb4 {[%clk 0:00:18]}  Bf4 {[%clk 0:00:23]} 31. Re1 {[%clk 0:00:18]}  Rb8 {[%clk 0:00:22]} 32. g3 {[%clk 0:00:18]}  Bc7 {[%clk 0:00:21]} 33. Nd4 {[%clk 0:00:15]}  Nxb4 {[%clk 0:00:20]} 34. axb4 {[%clk 0:00:16]}  Rxb4 {[%clk 0:00:20]} 35. Nxc6 {[%clk 0:00:16]}  Rb5 {[%clk 0:00:19]} 36. a6 {[%clk 0:00:15]}  Rxc5 {[%clk 0:00:20]} 37. a7 {[%clk 0:00:15]}  Rxc6 {[%clk 0:00:18]} 38. a8=Q+ {[%clk 0:00:15]}  Kf7 {[%clk 0:00:18]} 39. Qxc6 {[%clk 0:00:16]} 1-0


[Site "https://www.chess.com"]

[Event "Titled Tuesday Blitz April 11 Early 2023"]
[White "Jimenez Jimenez, Leandro"]
[Black "Megalios, Konstantinos"]
[WhiteFideId "6415253"]
[BlackFideId "4238044"]
[WhiteElo "2263"]
[BlackElo "2277"]
[Result "0-1"]
[Round "03"]
[TimeControl "180+2"]
[Date "2023.04.11"]
[WhiteClock "0:00:05"]
[BlackClock "0:00:14"]

1. d4 {[%clk 0:03:00]}  Nf6 {[%clk 0:02:55]} 2. c4 {[%clk 0:03:01]}  c5 {[%clk 0:02:52]} 3. dxc5 {[%clk 0:02:44]}  Na6 {[%clk 0:02:50]} 4. g3 {[%clk 0:02:42]}  Nxc5 {[%clk 0:02:47]} 5. Bg2 {[%clk 0:02:42]}  g6 {[%clk 0:02:47]} 6. Nc3 {[%clk 0:02:42]}  Bg7 {[%clk 0:02:47]} 7. Nf3 {[%clk 0:02:42]}  O-O {[%clk 0:02:46]} 8. O-O {[%clk 0:02:42]}  d6 {[%clk 0:02:43]} 9. Nd4 {[%clk 0:02:10]}  Rb8 {[%clk 0:02:29]} 10. b4 {[%clk 0:02:01]}  Ne6 {[%clk 0:02:28]} 11. Nc2 {[%clk 0:02:01]}  Ng4 {[%clk 0:02:12]} 12. Bb2 {[%clk 0:01:51]}  Bd7 {[%clk 0:02:02]} 13. a4 {[%clk 0:01:32]}  Re8 {[%clk 0:01:48]} 14. a5 {[%clk 0:01:31]}  Qc8 {[%clk 0:01:45]} 15. Na3 {[%clk 0:01:24]}  Ne5 {[%clk 0:01:42]} 16. Qb3 {[%clk 0:01:22]}  Nd4 {[%clk 0:01:40]} 17. Qa2 {[%clk 0:01:21]}  Be6 {[%clk 0:01:29]} 18. Nd5 {[%clk 0:01:15]}  Nxe2+ {[%clk 0:01:25]} 19. Kh1 {[%clk 0:01:13]}  Bxd5 {[%clk 0:01:00]} 20. Bxd5 {[%clk 0:01:05]}  Qh3 {[%clk 0:00:48]} 21. Bxe5 {[%clk 0:00:58]}  Bxe5 {[%clk 0:00:44]} 22. Qxe2 {[%clk 0:00:57]}  Bxa1 {[%clk 0:00:41]} 23. Rxa1 {[%clk 0:00:58]}  e6 {[%clk 0:00:40]} 24. Bg2 {[%clk 0:00:55]}  Qf5 {[%clk 0:00:40]} 25. Nb5 {[%clk 0:00:52]}  d5 {[%clk 0:00:33]} 26. Rd1 {[%clk 0:00:37]}  Qf6 {[%clk 0:00:28]} 27. Nxa7 {[%clk 0:00:33]}  dxc4 {[%clk 0:00:28]} 28. Qxc4 {[%clk 0:00:31]}  Qxf2 {[%clk 0:00:27]} 29. Qd4 {[%clk 0:00:21]}  Qxd4 {[%clk 0:00:23]} 30. Rxd4 {[%clk 0:00:22]}  e5 {[%clk 0:00:20]} 31. Rd7 {[%clk 0:00:22]}  e4 {[%clk 0:00:20]} 32. Kg1 {[%clk 0:00:22]}  f5 {[%clk 0:00:18]} 33. Bf1 {[%clk 0:00:21]}  Rbd8 {[%clk 0:00:17]} 34. Bc4+ {[%clk 0:00:20]}  Kh8 {[%clk 0:00:18]} 35. Rxd8 {[%clk 0:00:15]}  Rxd8 {[%clk 0:00:17]} 36. Nb5 {[%clk 0:00:10]}  Rd2 {[%clk 0:00:17]} 37. h4 {[%clk 0:00:04]}  Rb2 {[%clk 0:00:17]} 38. Nd6 {[%clk 0:00:03]}  Rxb4 {[%clk 0:00:17]} 39. Bd5 {[%clk 0:00:04]}  e3 {[%clk 0:00:13]} 40. Bxb7 {[%clk 0:00:02]}  Rb1+ {[%clk 0:00:12]} 41. Kg2 {[%clk 0:00:03]}  e2 {[%clk 0:00:13]} 42. Nf7+ {[%clk 0:00:02]}  Kg7 {[%clk 0:00:13]} 43. a6 {[%clk 0:00:03]}  e1=Q {[%clk 0:00:13]} 44. a7 {[%clk 0:00:04]}  Qh1+ {[%clk 0:00:13]} 45. Kf2 {[%clk 0:00:04]}  Qxb7 {[%clk 0:00:14]} 46. Nd6 {[%clk 0:00:05]}  Rb2+ {[%clk 0:00:14]} 47. Ke1 {[%clk 0:00:03]}  Qxa7 {[%clk 0:00:14]} 48. Ne8+ {[%clk 0:00:04]}  Kh6 {[%clk 0:00:13]} 49. Nd6 {[%clk 0:00:05]}  Qe3+ {[%clk 0:00:14]} 0-1


[Site "https://www.chess.com"]

[Event "Titled Tuesday Blitz April 11 Early 2023"]
[White "Danielyan, Vahe"]
[Black "Rafiee, Makan"]
[WhiteFideId "13304828"]
[BlackFideId "24609340"]
[WhiteElo "2423"]
[BlackElo "2327"]
[Result "1-0"]
[Round "03"]
[TimeControl "180+2"]
[Date "2023.04.11"]
[WhiteClock "0:02:06"]
[BlackClock "0:02:09"]

1. d4 {[%clk 0:03:00]}  d5 {[%clk 0:02:59]} 2. c4 {[%clk 0:03:00]}  e6 {[%clk 0:02:59]} 3. Nc3 {[%clk 0:03:00]}  Nf6 {[%clk 0:02:59]} 4. Nf3 {[%clk 0:03:00]}  Be7 {[%clk 0:02:58]} 5. Bf4 {[%clk 0:03:00]}  O-O {[%clk 0:02:57]} 6. e3 {[%clk 0:03:00]}  a6 {[%clk 0:02:54]} 7. cxd5 {[%clk 0:03:00]}  Nxd5 {[%clk 0:02:54]} 8. Nxd5 {[%clk 0:02:55]}  Qxd5 {[%clk 0:02:55]} 9. a3 {[%clk 0:02:50]}  c5 {[%clk 0:02:54]} 10. dxc5 {[%clk 0:02:42]}  Qxc5 {[%clk 0:02:51]} 11. Bd3 {[%clk 0:02:41]}  Nc6 {[%clk 0:02:49]} 12. O-O {[%clk 0:02:40]}  b5 {[%clk 0:02:41]} 13. Rc1 {[%clk 0:02:39]}  Qb6 {[%clk 0:02:29]} 14. Qc2 {[%clk 0:02:21]}  Bb7 {[%clk 0:02:24]} 15. Bxh7+ {[%clk 0:02:20]}  Kh8 {[%clk 0:02:24]} 16. Be4 {[%clk 0:02:17]}  Rac8 {[%clk 0:02:23]} 17. Qe2 {[%clk 0:02:14]}  f5 {[%clk 0:02:13]} 18. Bxc6 {[%clk 0:02:08]}  Bxc6 {[%clk 0:02:14]} 19. Ne5 {[%clk 0:02:07]}  g5 {[%clk 0:02:11]} 20. Qh5+ {[%clk 0:02:06]}  Kg7 {[%clk 0:02:09]} 21. Qg6+ {[%clk 0:02:06]} 1-0


[Site "https://www.chess.com"]